bitfinex/quotes_BTCUSD_20220207
["timestamp","ask_amount","ask_price","bid_price","bid_amount"]
[1644272907275,0.00939102,44199.0,44192.0,0.02085464]
[1644272907474,0.056571,44205.0,44192.0,0.02085464]
[1644272907475,0.00939102,44196.0,44192.0,0.02085464]
[1644272907674,0.00070038,44198.0,44193.0,0.323302]
[1644272908074,0.00939102,44195.0,44193.0,0.323302]
[1644272911928,0.00939102,44195.0,44194.0,0.04060898]
[1644272912129,0.00939102,44195.0,44194.0,0.05226898]
[1644272913531,0.00939102,44195.0,44194.0,0.01166]
[1644272913932,0.00939102,44195.0,44193.0,0.04060898]
[1644272916978,0.00939102,44195.0,44194.0,0.323302]
[1644272917176,0.00939102,44195.0,44193.0,0.04060898]
[1644272920016,0.00070038,44196.0,44193.0,0.04060898]
[1644272920521,0.00939102,44197.0,44193.0,0.04060898]
[1644272920719,0.0100914,44197.0,44193.0,0.04060898]
[1644272921517,0.00939102,44197.0,44193.0,0.04060898]
[1644272921717,0.0100914,44197.0,44193.0,0.04060898]
[1644272922265,0.00939102,44194.0,44193.0,0.36391098]
[1644272922668,0.0100914,44197.0,44193.0,0.36391098]
[1644272922873,0.00939102,44197.0,44193.0,0.36391098]
[1644272923067,0.00070038,44196.0,44193.0,0.36391098]
[1644272924170,0.0100914,44197.0,44193.0,0.36391098]
[1644272925173,0.00939102,44197.0,44193.0,0.04060898]
[1644272925377,0.00070038,44197.0,44193.0,0.05]
[1644272926420,0.113162,44202.0,44193.0,0.05]
[1644272926618,0.00070038,44197.0,44193.0,0.05]
[1644272927519,0.056577,44199.0,44193.0,0.05]
[1644272927727,0.00070038,44197.0,44193.0,0.05]
[1644272928620,0.00070038,44197.0,44194.0,0.323302]
[1644272928820,0.056577,44199.0,44193.0,0.05]
[1644272929021,0.00070038,44197.0,44193.0,0.05]
[1644272930068,0.056575,44201.0,44193.0,0.05]
[1644272930268,0.00070038,44197.0,44194.0,0.379876]
[1644272930471,6.475e-05,44196.0,44194.0,0.056574]
[1644272931873,6.475e-05,44196.0,44194.0,0.106574]
[1644272935326,6.475e-05,44196.0,44195.0,0.323302]
[1644272935726,0.00070038,44197.0,44195.0,0.323302]
[1644272935954,0.056572,44203.0,44195.0,0.323302]
[1644272935955,0.2777663,44202.0,44195.0,0.323302]
[1644272936125,0.2777663,44202.0,44196.0,0.056572]
[1644272936324,0.00070038,44198.0,44196.0,0.056572]
[1644272937126,0.056572,44203.0,44196.0,0.056572]
[1644272937368,0.00070038,44199.0,44196.0,0.056572]
[1644272938369,0.056572,44203.0,44196.0,0.056572]
[1644272938769,0.00070038,44200.0,44196.0,0.056572]
[1644272939570,0.056572,44203.0,44196.0,0.056572]
[1644272939770,0.00070038,44200.0,44196.0,0.056572]
[1644272940169,0.00020038,44200.0,44196.0,0.056572]
[1644272940371,0.00020038,44200.0,44193.0,0.05]
[1644272940570,6.159e-05,44196.0,44193.0,0.05]
[1644272940777,6.159e-05,44196.0,44194.0,0.323302]
[1644272941418,6.159e-05,44196.0,44194.0,0.379877]
[1644272945469,0.05663552,44200.0,44194.0,0.379877]
[1644272945671,0.05663552,44200.0,44194.0,0.056575]
[1644272945672,6.152e-05,44200.0,44194.0,0.056575]
[1644272947072,0.05663452,44200.0,44194.0,0.056575]
[1644272947274,0.05663452,44200.0,44194.0,0.24901057]
[1644272948275,0.05663452,44200.0,44194.0,0.24904824]
[1644272948920,0.05663452,44200.0,44194.0,0.056575]
[1644272949320,0.05663452,44200.0,44194.0,0.24904824]
[1644272950321,0.05663452,44200.0,44194.0,0.056575]
[1644272952767,0.05663452,44200.0,44199.0,0.001]
[1644272955268,0.113148,44203.0,44199.0,0.001]
[1644272955471,0.00069913,44202.0,44199.0,0.001]
[1644272956429,0.056573,44200.0,44199.0,0.001]
[1644272965523,0.05663799,44200.0,44199.0,0.001]
[1644272965921,0.04663799,44200.0,44199.0,0.001]
[1644272968874,0.04163799,44200.0,44199.0,0.001]
[1644272976477,0.04163799,44200.0,44192.0,9.0]
[1644272976678,0.056586,44195.0,44192.0,8.661489]
[1644272976879,0.11317117,44194.0,44192.0,8.658589]
[1644272977080,0.16317117,44194.0,44192.0,8.31907]
[1644272977481,0.26678371,44193.0,44192.0,8.31907]
[1644272977679,0.26678371,44193.0,44192.0,7.979539]
[1644272978080,0.26678371,44193.0,44192.0,7.470242]
[1644272978830,0.26678371,44193.0,44192.0,7.130703]
[1644272979229,0.26678371,44193.0,44192.0,6.79117]
[1644272980429,0.26317117,44194.0,44192.0,6.79117]
[1644272980830,0.16317117,44194.0,44192.0,6.79117]
[1644272981331,0.16433625,44194.0,44192.0,6.79117]
[1644272981531,0.16519881,44194.0,44192.0,6.79117]
[1644272981931,0.00172101,44193.0,44192.0,6.79117]
[1644272984395,0.00374865,44193.0,44192.0,6.79117]
[1644272984596,0.00362094,44193.0,44192.0,6.79117]
[1644272984797,0.00336552,44193.0,44192.0,6.79117]
[1644272984995,0.27461381,44193.0,44192.0,6.79117]
[1644272985201,0.00336552,44193.0,44192.0,6.79117]
[1644272985394,0.24407129,44194.0,44192.0,6.79117]
[1644272985796,6.444e-05,44193.0,44192.0,6.79117]
[1644272986825,0.00175128,44193.0,44192.0,6.79117]
[1644272987024,0.00175128,44193.0,44192.0,6.84992431]
[1644272987424,0.19582257,44193.0,44192.0,6.84992431]
[1644272987624,0.00175128,44193.0,44192.0,6.84992431]
[1644272992371,6.444e-05,44193.0,44192.0,6.84992431]
[1644272993375,0.19410733,44193.0,44192.0,6.84992431]
[1644272993626,6.444e-05,44193.0,44192.0,6.84992431]
[1644272994026,0.19410733,44193.0,44192.0,6.84992431]
[1644272994226,6.444e-05,44193.0,44192.0,6.84992431]
[1644272994425,0.19410733,44193.0,44192.0,6.84992431]
[1644272994625,6.444e-05,44193.0,44192.0,6.84992431]
[1644272996624,0.05006444,44193.0,44192.0,6.84992431]
[1644272997477,0.24410733,44193.0,44192.0,6.84992431]
[1644272997677,0.05006444,44193.0,44192.0,6.84992431]
[1644272997877,0.04851234,44193.0,44192.0,6.84992431]
[1644272998677,0.4798606,44193.0,44192.0,6.84992431]
[1644272998879,0.5798606,44193.0,44192.0,6.84992431]
[1644273000779,0.29410733,44193.0,44192.0,6.84992431]
[1644273001028,0.57269348,44193.0,44192.0,6.84992431]
[1644273001224,0.47269348,44193.0,44192.0,6.84992431]
[1644273001424,0.57269348,44193.0,44192.0,6.84992431]
[1644273002424,0.57267853,44193.0,44192.0,6.84992431]
[1644273003826,0.29409238,44193.0,44192.0,6.84992431]
[1644273004225,0.24409238,44193.0,44192.0,6.84992431]
[1644273004625,0.52106282,44193.0,44192.0,6.84992431]
[1644273004874,0.57106282,44193.0,44192.0,6.84992431]
[1644273005076,0.61912282,44193.0,44192.0,6.84992431]
[1644273006277,0.34215238,44193.0,44192.0,6.84992431]
[1644273006476,0.24215238,44193.0,44192.0,6.84992431]
[1644273008932,0.27765565,44193.0,44192.0,6.84992431]
[1644273009126,0.31316031,44193.0,44192.0,6.84992431]
[1644273009427,0.41316031,44193.0,44192.0,6.84992431]
[1644273010427,0.41309587,44193.0,44192.0,6.84992431]
[1644273011427,0.41309587,44193.0,44192.0,6.84975283]
[1644273011630,0.26503587,44193.0,44192.0,6.84975283]
[1644273012476,0.07100793,44193.0,44192.0,6.84975283]
[1644273013176,0.31503587,44193.0,44192.0,6.84975283]
[1644273013377,0.22100793,44193.0,44192.0,6.84975283]
[1644273013778,0.22628845,44193.0,44192.0,6.84975283]
[1644273014579,0.12628845,44193.0,44192.0,6.84975283]
[1644273015380,0.21317034,44195.0,44194.0,0.27842308]
[1644273015878,0.11317034,44195.0,44194.0,0.27842308]
[1644273017026,0.22633134,44195.0,44194.0,0.27842308]
[1644273017228,0.11317034,44195.0,44194.0,0.27842308]
[1644273017428,0.10817034,44195.0,44194.0,0.27842308]
[1644273017629,0.12252102,44196.0,44194.0,0.27842308]
[1644273017830,0.06594102,44196.0,44194.0,0.27842308]
[1644273018029,0.05658,44195.0,44194.0,0.27842308]
[1644273020575,0.05664164,44195.0,44194.0,0.27842308]
[1644273023831,6.164e-05,44195.0,44194.0,0.27842308]
[1644273025929,6.164e-05,44195.0,44194.0,0.60172508]
[1644273027774,6.164e-05,44195.0,44194.0,0.90486747]
[1644273028177,6.164e-05,44195.0,44194.0,0.60172508]
[1644273028980,0.05624422,44203.0,44194.0,0.27842308]
[1644273029175,0.05624422,44203.0,44201.0,0.05]
[1644273029577,0.02034496,44204.0,44198.0,0.05]
[1644273029578,0.05657274,44201.0,44198.0,0.05]
[1644273030880,0.11314174,44201.0,44198.0,0.05]
[1644273031543,0.11314174,44201.0,44195.0,0.05]
[1644273031544,0.05657113,44199.0,44195.0,0.05]
[1644273032140,0.05657113,44199.0,44198.0,0.05]
[1644273032339,0.05657113,44199.0,44194.0,0.27842308]
[1644273033847,0.056576,44198.0,44194.0,0.27842308]
[1644273034046,0.11316,44197.0,44194.0,0.27842308]
[1644273034243,0.16316,44197.0,44194.0,0.27842308]
[1644273034441,0.276321,44197.0,44194.0,0.27842308]
[1644273035075,0.16316,44197.0,44194.0,0.27842308]
[1644273035876,0.11316,44197.0,44194.0,0.27842308]
[1644273039728,0.16974391,44197.0,44194.0,0.27842308]
[1644273040533,0.21974391,44197.0,44194.0,0.27842308]
[1644273040731,0.44543426,44196.0,44194.0,0.27842308]
[1644273040930,0.35459685,44195.0,44194.0,0.27842308]
[1644273041329,0.55459685,44195.0,44194.0,0.27842308]
[1644273042132,0.056596,44195.0,44194.0,0.32842308]
[1644273045085,0.05621332,44195.0,44194.0,0.32842308]
[1644273045287,0.05658,44198.0,44197.0,0.33875464]
[1644273045487,0.05658,44198.0,44194.0,0.32842308]
[1644273046132,0.056596,44195.0,44194.0,0.32842308]
[1644273059080,0.00455173,44195.0,44194.0,0.32842308]
[1644273061626,0.00455173,44195.0,44194.0,0.22842308]
[1644273063129,0.00455173,44195.0,44194.0,0.22382308]
[1644273065681,0.05112973,44199.0,44194.0,0.22382308]
[1644273066084,0.219731,44200.0,44194.0,0.22382308]
[1644273066681,0.169731,44200.0,44194.0,0.22382308]
[1644273067082,0.169731,44200.0,44197.0,0.05]
[1644273067282,0.169731,44200.0,44194.0,0.17382308]
[1644273067482,0.056578,44198.0,44194.0,0.22382308]
[1644273068631,0.056578,44198.0,44194.0,0.17382308]
[1644273068831,0.056578,44198.0,44194.0,0.22382308]
[1644273071634,0.113157,44198.0,44194.0,0.22382308]
[1644273071832,0.056578,44198.0,44197.0,0.05]
[1644273072035,0.056578,44198.0,44195.0,0.05]
[1644273072782,0.00936084,44199.0,44195.0,0.05]
[1644273073382,0.113158,44200.0,44195.0,0.05]
[1644273074384,0.113154,44198.0,44195.0,0.05]
[1644273075385,0.113153,44203.0,44195.0,0.05]
[1644273075688,0.00058629,44202.0,44195.0,0.05]
[1644273076351,0.113154,44198.0,44195.0,0.05]
[1644273079456,0.113147,44200.0,44196.0,0.20599763]
[1644273079655,0.00058629,44202.0,44198.0,0.05]
[1644273079880,0.00058629,44202.0,44196.0,0.20599763]
[1644273079881,0.00058629,44202.0,44201.0,0.05]
[1644273080081,0.02193622,44205.0,44201.0,0.05]
[1644273080279,0.00058633,44202.0,44201.0,0.05]
[1644273081280,0.056571,44204.0,44201.0,0.05]
[1644273081480,0.11372733,44204.0,44202.0,0.00025545]
[1644273082478,0.113141,44204.0,44202.0,0.00025545]
[1644273085036,0.113142,44203.0,44202.0,0.00025545]
[1644273086137,0.108142,44203.0,44202.0,0.00025545]
[1644273087135,0.10788655,44203.0,44201.0,0.05]
[1644273089695,0.10788655,44203.0,44202.0,1.785266]
[1644273089896,0.22102955,44203.0,44202.0,1.785266]
[1644273093131,0.27102955,44203.0,44202.0,1.785266]
[1644273093531,0.28039039,44203.0,44202.0,1.785266]
[1644273094532,0.23039039,44203.0,44202.0,1.785266]
[1644273094786,0.27102955,44203.0,44202.0,1.785266]
[1644273094986,0.28039039,44203.0,44202.0,1.785266]
[1644273095386,0.23039039,44203.0,44202.0,1.785266]
[1644273095588,0.27102955,44203.0,44202.0,1.785266]
[1644273095788,0.23039039,44203.0,44202.0,1.785266]
[1644273096091,0.27102955,44203.0,44202.0,1.785266]
[1644273096290,0.23039039,44203.0,44202.0,1.785266]
[1644273096492,0.22102955,44203.0,44202.0,1.785266]
[1644273097288,0.28039039,44203.0,44202.0,1.785266]
[1644273097489,0.23039039,44203.0,44202.0,1.785266]
[1644273097689,0.22102955,44203.0,44202.0,1.785266]
[1644273098192,0.27102955,44203.0,44202.0,1.785266]
[1644273098392,0.28039039,44203.0,44194.0,0.19507352]
[1644273098634,0.056578,44199.0,44194.0,0.19507352]
[1644273099433,0.056578,44199.0,44195.0,0.05]
[1644273099434,0.11315755,44199.0,44195.0,0.05]
[1644273099634,0.12251839,44199.0,44195.0,0.05]
[1644273099832,0.05269745,44198.0,44195.0,0.05]
[1644273100933,0.056581,44197.0,44195.0,0.05]
[1644273103786,0.056581,44197.0,44194.0,0.17382308]
[1644273104886,0.056581,44196.0,44194.0,0.17382308]
[1644273105085,0.05658,44195.0,44194.0,0.17382308]
[1644273105485,0.05657986,44197.0,44194.0,0.17382308]
[1644273106330,0.05658,44195.0,44194.0,0.17382308]
[1644273107532,0.05658,44195.0,44194.0,0.16882308]
[1644273108134,0.04526505,44195.0,44194.0,0.16882308]
[1644273119481,0.0448819,44195.0,44194.0,0.16882308]
[1644273135498,0.00058337,44202.0,44201.0,0.24663477]
[1644273135697,0.28208377,44202.0,44201.0,0.24663477]
[1644273135895,0.33208377,44202.0,44201.0,0.24663477]
[1644273136127,0.43208377,44202.0,44201.0,0.24663477]
[1644273136529,0.4880804,44202.0,44201.0,0.24663477]
[1644273143288,0.20658,44202.0,44201.0,0.24663477]
[1644273143732,0.10658,44202.0,44201.0,0.24663477]
[1644273144431,0.09658,44202.0,44201.0,0.24663477]
[1644273161137,0.05658,44202.0,44201.0,0.24663477]
[1644273165486,0.05657875,44205.0,44201.0,0.24663477]
[1644273167332,0.163158,44204.0,44201.0,0.24663477]
[1644273167532,0.106578,44204.0,44201.0,0.24663477]
[1644273168733,0.05658,44203.0,44201.0,0.24663477]
[1644273172686,0.05658,44203.0,44202.0,0.05]
[1644273174630,0.05158,44203.0,44202.0,0.04935746]
[1644273175834,0.05158,44203.0,44201.0,0.24663477]
[1644273183836,0.05158,44203.0,44202.0,0.05]
[1644273184883,0.05158,44203.0,44201.0,0.24663477]
[1644273185084,0.05158,44203.0,44202.0,0.05]
[1644273186685,0.05158,44203.0,44201.0,0.24663477]
[1644273191136,0.10158,44203.0,44201.0,0.24663477]
[1644273191337,0.113159,44202.0,44201.0,0.24663477]
[1644273195599,0.0006878,44206.0,44201.0,0.24663477]
[1644273196437,0.05657737,44205.0,44201.0,0.24663477]
[1644273196633,0.056579,44204.0,44201.0,0.24663477]
[1644273197036,0.106579,44204.0,44201.0,0.24663477]
[1644273197334,0.056579,44203.0,44201.0,0.24663477]
[1644273198936,0.113159,44203.0,44201.0,0.24663477]
[1644273199137,0.113164,44202.0,44201.0,0.24663477]
[1644273199886,0.163164,44202.0,44201.0,0.24663477]
[1644273204236,0.16272469,44202.0,44201.0,0.24663477]
[1644273213738,0.16272469,44202.0,44201.0,0.24293277]
[1644273217488,0.16205895,44202.0,44201.0,0.24293277]
[1644273217989,0.11316305,44205.0,44201.0,0.24293277]
[1644273217990,0.01557026,44207.0,44201.0,0.24293277]
[1644273218533,0.113164,44202.0,44201.0,0.24293277]
[1644273219133,0.163164,44202.0,44201.0,0.24293277]
[1644273225492,0.32632573,44203.0,44202.0,0.326328]
[1644273225693,0.32632573,44203.0,44201.0,0.24293277]
[1644273225694,0.26974573,44203.0,44201.0,0.24293277]
[1644273225892,0.22632973,44203.0,44201.0,0.24293277]
[1644273226334,0.113164,44202.0,44201.0,0.24293277]
[1644273227133,0.163164,44202.0,44201.0,0.24293277]
[1644273233737,0.163164,44202.0,44200.0,3.0]
[1644273233937,0.21974746,44202.0,44200.0,3.0]
[1644273246090,0.056584,44203.0,44200.0,3.0]
[1644273246491,2.27190224,44215.0,44200.0,3.0]
[1644273246692,0.113164,44202.0,44200.0,3.0]
[1644273246894,0.16974746,44202.0,44200.0,3.0]
[1644273247298,0.113164,44202.0,44200.0,3.0]
[1644273248294,0.163164,44202.0,44200.0,3.0]
[1644273249337,0.056581,44201.0,44200.0,3.0]
[1644273249539,0.05619706,44201.0,44200.0,3.0]
[1644273255593,0.05,44201.0,44200.0,3.0]
[1644273255793,0.113166,44203.0,44200.0,3.0]
[1644273256446,0.056581,44201.0,44200.0,3.0]
[1644273257243,0.106581,44201.0,44200.0,3.0]
[1644273257644,0.10601284,44201.0,44200.0,3.0]
[1644273273443,0.056581,44201.0,44200.0,3.0]
[1644273273644,0.106581,44201.0,44200.0,3.0]
[1644273273845,0.056581,44201.0,44200.0,3.0]
[1644273279941,0.056581,44201.0,44200.0,2.99993874]
[1644273285589,0.21974368,44202.0,44200.0,2.99993874]
[1644273286440,0.056581,44201.0,44200.0,2.99993874]
[1644273288839,0.106581,44201.0,44200.0,2.99993874]
[1644273294740,0.056581,44201.0,44200.0,2.99993874]
[1644273304055,0.05641934,44201.0,44200.0,2.99993874]
[1644273304456,0.58955353,44201.0,44200.0,2.99993874]
[1644273306792,0.58955353,44201.0,44200.0,3.0001937]
[1644273307995,0.28641934,44201.0,44200.0,3.0001937]
[1644273314299,0.33641934,44201.0,44200.0,3.0001937]
[1644273315105,0.18606679,44201.0,44200.0,3.0001937]
[1644273316050,0.24264779,44201.0,44200.0,3.0001937]
[1644273317348,0.29264779,44201.0,44200.0,3.0001937]
[1644273319793,0.24264779,44201.0,44200.0,3.0001937]
[1644273320194,0.24264779,44201.0,44200.0,2.6606237]
[1644273320895,0.29264779,44201.0,44200.0,2.3210487]
[1644273321296,0.29264779,44201.0,44200.0,1.9814717]
[1644273321898,0.29264779,44201.0,44200.0,1.6418927]
[1644273326053,0.35176832,44201.0,44200.0,1.6918927]
[1644273326452,0.35176832,44201.0,44200.0,1.69167615]
[1644273326653,0.35176832,44201.0,44200.0,1.68667615]
[1644273327052,0.35176832,44201.0,44200.0,1.73667615]
[1644273328104,0.35176832,44201.0,44200.0,1.68667615]
[1644273328299,0.54173086,44201.0,44200.0,1.68667615]
[1644273328700,0.59173086,44201.0,44200.0,1.68667615]
[1644273328901,0.59173086,44201.0,44200.0,1.73667615]
[1644273329101,0.40176832,44201.0,44200.0,1.73667615]
[1644273329702,0.40176832,44201.0,44200.0,1.05748415]
[1644273330101,0.59557702,44201.0,44200.0,1.05748415]
[1644273330302,0.59557702,44201.0,44200.0,0.71788915]
[1644273330502,0.91887902,44201.0,44200.0,0.66763419]
[1644273330709,0.72507032,44201.0,44200.0,0.32803819]
[1644273331349,0.72507032,44201.0,44199.0,0.00025496]
[1644273331551,0.60629669,44200.0,44196.0,0.01629883]
[1644273331748,0.28299469,44200.0,44199.0,0.05]
[1644273332750,0.69346819,44200.0,44199.0,0.05]
[1644273332952,1.01677019,44200.0,44197.0,0.05025779]
[1644273333151,0.69346819,44200.0,44197.0,0.05]
[1644273333355,0.69346819,44200.0,44197.0,0.05025779]
[1644273333551,0.0566,44199.0,44197.0,0.05025779]
[1644273333749,0.27771149,44198.0,44197.0,0.05025779]
[1644273334650,0.27771149,44198.0,44197.0,0.05]
[1644273334896,0.27771149,44198.0,44196.0,0.00025779]
[1644273335096,0.27771149,44198.0,44195.0,0.00072066]
[1644273335497,0.056599,44197.0,44195.0,0.00072066]
[1644273335697,0.056599,44197.0,44193.0,0.00025779]
[1644273335904,0.056599,44197.0,44194.0,0.00072068]
[1644273336301,0.23396791,44197.0,44196.0,0.05]
[1644273336500,0.52050204,44197.0,44196.0,0.05]
[1644273336698,0.52050204,44197.0,44196.0,0.05025779]
[1644273337898,0.33396791,44197.0,44196.0,0.00025779]
[1644273338105,2.75000631,44197.0,44187.0,0.01870935]
[1644273338301,0.05,44193.0,44192.0,6.80368749]
[1644273338558,0.05,44193.0,44192.0,6.12426649]
[1644273338847,0.276468,44193.0,44192.0,6.12426649]
[1644273339048,0.276468,44193.0,44192.0,5.7716301]
[1644273339248,0.28233684,44193.0,44192.0,4.76532113]
[1644273339447,0.28233684,44193.0,44192.0,4.34180619]
[1644273339448,1.52364765,44193.0,44192.0,4.34180619]
[1644273339648,1.52364765,44193.0,44192.0,3.91736719]
[1644273339649,1.22364765,44193.0,44192.0,3.91736719]
[1644273339849,1.32364765,44193.0,44192.0,3.46438619]
[1644273340047,1.32364765,44193.0,44192.0,3.12464719]
[1644273340048,1.64694965,44193.0,44192.0,3.12464719]
[1644273340248,1.64694965,44193.0,44192.0,2.78490572]
[1644273340449,1.64694965,44193.0,44192.0,2.01234072]
[1644273340652,1.64694965,44193.0,44192.0,1.51918172]
[1644273340848,1.68684965,44193.0,44192.0,1.39689165]
[1644273341054,3.9466789,44193.0,44192.0,0.96274001]
[1644273341248,3.9466789,44193.0,44192.0,0.62296901]
[1644273341449,3.9466789,44193.0,44192.0,0.28319901]
[1644273341648,0.1,44192.0,44172.0,0.05875431]
[1644273341849,0.05,44176.0,44172.0,0.05875431]
[1644273342051,0.0399,44173.0,44172.0,0.05875431]
[1644273342299,0.25,44176.0,44172.0,0.05875431]
[1644273342500,0.323302,44175.0,44172.0,0.05875431]
[1644273342900,0.423302,44175.0,44172.0,0.05875431]
[1644273343299,0.479931,44175.0,44172.0,0.05875431]
[1644273343501,0.056629,44173.0,44172.0,0.05875431]
[1644273343707,0.429931,44173.0,44172.0,0.05875431]
[1644273343906,0.529931,44173.0,44172.0,0.05875431]
[1644273345306,0.81338837,44173.0,44172.0,0.05875431]
[1644273346151,0.85802406,44173.0,44172.0,0.05875431]
[1644273346549,0.579931,44173.0,44172.0,0.05875431]
[1644273346751,0.85630911,44173.0,44172.0,0.05875431]
[1644273347050,0.68603032,44173.0,44172.0,0.05875431]
[1644273347250,0.48682016,44173.0,44172.0,0.05875431]
[1644273347549,0.2,44173.0,44172.0,0.05875431]
[1644273348053,0.1,44173.0,44172.0,0.05875431]
[1644273348251,0.37677705,44173.0,44172.0,0.05875431]
[1644273348451,0.43340605,44173.0,44172.0,0.05875431]
[1644273348650,0.85675605,44173.0,44172.0,0.05875431]
[1644273350298,0.75675605,44173.0,44172.0,0.10212531]
[1644273350693,0.80681919,44173.0,44172.0,0.10212531]
[1644273350892,0.80681919,44173.0,44172.0,0.05875431]
[1644273351109,1.03681919,44173.0,44172.0,0.05875431]
[1644273351497,0.76004214,44173.0,44172.0,0.05875431]
[1644273357300,0.76004214,44173.0,44171.0,0.0002562]
[1644273357502,0.113269,44171.0,44170.0,0.01097716]
[1644273357701,0.436619,44171.0,44170.0,0.01097716]
[1644273357899,0.586619,44171.0,44170.0,0.01097716]
[1644273358600,0.586619,44171.0,44170.0,0.0102562]
[1644273359000,0.586619,44171.0,44170.0,0.01]
[1644273360002,0.586619,44171.0,44170.0,0.0102562]
[1644273361051,0.586619,44171.0,44170.0,0.01]
[1644273361249,0.586619,44171.0,44170.0,0.0102562]
[1644273361447,0.586619,44171.0,44170.0,0.01]
[1644273362249,0.586619,44171.0,44170.0,0.0102562]
[1644273362450,0.586619,44171.0,44169.0,0.043371]
[1644273362651,0.379992,44170.0,44168.0,0.1]
[1644273362850,0.529992,44170.0,44168.0,0.1]
[1644273363051,0.32335,44169.0,44168.0,0.1]
[1644273363253,0.37335,44169.0,44168.0,0.1]
[1644273363454,0.47335,44169.0,44168.0,0.1]
[1644273364255,0.47335,44169.0,44168.0,0.143371]
[1644273364558,0.47335,44169.0,44168.0,0.1]
[1644273366503,0.47307765,44169.0,44168.0,0.1]
[1644273367106,0.14972765,44169.0,44168.0,0.1]
[1644273367301,0.04972765,44169.0,44168.0,0.1]
[1644273368548,0.37307765,44169.0,44168.0,0.1]
[1644273368748,0.47307765,44169.0,44168.0,0.1]
[1644273369149,0.47307765,44169.0,44166.0,0.00071817]
[1644273369347,0.493281,44168.0,44160.0,0.3856]
[1644273369546,0.05,44167.0,44166.0,0.00071817]
[1644273369752,0.37335,44167.0,44166.0,0.00071817]
[1644273370147,0.47335,44167.0,44166.0,0.00071817]
[1644273370548,0.056644,44165.0,44161.0,0.043371]
[1644273370752,0.37929614,44165.0,44164.0,0.0007182]
[1644273370948,0.42929614,44165.0,44164.0,0.0007182]
[1644273371148,0.52929614,44165.0,44164.0,0.0007182]
[1644273371748,0.219919,44164.0,44161.0,0.043371]
[1644273371949,0.32335,44163.0,44162.0,0.05947253]
[1644273372400,0.42335,44163.0,44162.0,0.05947253]
[1644273372995,0.42335,44163.0,44162.0,0.05875431]
[1644273374195,0.479988,44163.0,44162.0,0.05875431]
[1644273374495,0.379988,44163.0,44162.0,0.05875431]
[1644273375498,0.429988,44163.0,44162.0,0.05875431]
[1644273375699,0.529988,44163.0,44162.0,0.05875431]
[1644273375900,0.529988,44163.0,44162.0,0.10212531]
[1644273376157,0.47981998,44163.0,44162.0,0.05875431]
[1644273377359,0.47981998,44163.0,44162.0,2.84603931]
[1644273377564,0.156638,44163.0,44162.0,2.84603931]
[1644273377761,0.056638,44163.0,44162.0,2.84603931]
[1644273377963,0.056638,44163.0,44162.0,2.84629501]
[1644273378559,0.056638,44163.0,44162.0,2.83839501]
[1644273380497,0.05670027,44163.0,44162.0,2.83839501]
[1644273385446,0.28670027,44163.0,44162.0,2.83839501]
[1644273387049,0.2883954,44163.0,44162.0,2.83839501]
[1644273390003,0.2883954,44163.0,44162.0,2.49851801]
[1644273390506,0.2883954,44163.0,44162.0,2.15863701]
[1644273392350,0.28864131,44163.0,44162.0,2.15863701]
[1644273392551,0.28864131,44163.0,44162.0,1.81875301]
[1644273392955,0.28864131,44163.0,44162.0,1.47886401]
[1644273394551,0.28864131,44163.0,44162.0,1.46886401]
[1644273395602,0.28857904,44163.0,44162.0,1.46886401]
[1644273397504,0.28357904,44163.0,44162.0,1.46886401]
[1644273399255,0.46111651,44163.0,44162.0,1.46886401]
[1644273399457,0.56698535,44163.0,44162.0,1.12896701]
[1644273399656,0.79036735,44163.0,44162.0,1.12896701]
[1644273399855,0.89036735,44163.0,44162.0,1.12896701]
[1644273400255,0.89036735,44163.0,44162.0,0.78907801]
[1644273400457,0.89036735,44163.0,44162.0,0.78882231]
[1644273400859,0.89036735,44163.0,44162.0,0.44892831]
[1644273401063,1.18684872,44163.0,44162.0,0.44892831]
[1644273402301,1.18684872,44163.0,44162.0,0.10903331]
[1644273403105,1.18660281,44163.0,44153.0,0.01983816]
[1644273403304,0.436687,44162.0,44161.0,0.0002557]
[1644273403503,0.380035,44161.0,44153.0,0.00868555]
[1644273403708,0.430035,44161.0,44154.0,0.0002557]
[1644273403904,0.323382,44159.0,44153.0,0.02433215]
[1644273404102,0.373382,44159.0,44153.0,0.02433215]
[1644273404304,0.323382,44157.0,44153.0,0.0214587]
[1644273404506,0.056653,44156.0,44153.0,0.0214587]
[1644273404704,0.323382,44155.0,44153.0,0.0214587]
[1644273404906,0.423382,44155.0,44153.0,0.0214587]
[1644273405106,0.473382,44155.0,44153.0,0.0214587]
[1644273405305,0.37181359,44155.0,44153.0,0.0214587]
[1644273405506,0.493345,44154.0,44153.0,0.0214587]
[1644273405707,0.543345,44154.0,44153.0,0.0214587]
[1644273405906,0.92517933,44154.0,44153.0,0.0214587]
[1644273406356,0.92517933,44154.0,44153.0,0.0002557]
[1644273406552,0.92517933,44154.0,44149.0,0.0002557]
[1644273406852,0.323411,44153.0,44151.0,0.00051289]
[1644273407253,0.75429736,44153.0,44151.0,0.00051289]
[1644273407854,0.75429736,44153.0,44148.0,0.05]
[1644273408053,0.75429736,44153.0,44150.0,0.00071854]
[1644273408453,0.81095136,44153.0,44150.0,0.00071854]
[1644273409052,0.81095136,44153.0,44148.0,0.05]
[1644273409257,0.81095136,44153.0,44150.0,0.00071854]
[1644273410301,0.81095136,44153.0,44149.0,0.093371]
[1644273410504,0.81095136,44153.0,44150.0,0.00071854]
[1644273411407,0.81095136,44153.0,44149.0,0.093371]
[1644273411603,0.81095136,44153.0,44150.0,0.00071854]
[1644273412604,0.81095136,44153.0,44149.0,0.093371]
[1644273412806,0.81308529,44153.0,44150.0,0.00071854]
[1644273413113,0.53219893,44153.0,44150.0,0.00071854]
[1644273413751,0.53219893,44153.0,44149.0,0.093371]
[1644273413953,0.53219893,44153.0,44150.0,0.00071854]
[1644273414855,0.52872365,44153.0,44150.0,0.00071854]
[1644273415052,0.52872365,44153.0,44149.0,0.093371]
[1644273415352,0.52872365,44153.0,44150.0,0.00071854]
[1644273415353,0.52879272,44153.0,44150.0,0.00071854]
[1644273416152,0.52879272,44153.0,44149.0,0.093371]
[1644273416351,0.52833296,44153.0,44150.0,0.00071854]
[1644273417401,0.52833296,44153.0,44149.0,0.093371]
[1644273417601,0.52833296,44153.0,44150.0,0.00071854]
[1644273418604,0.52833296,44153.0,44149.0,0.093371]
[1644273418807,0.52833296,44153.0,44150.0,0.00095851]
[1644273419210,0.52833296,44153.0,44151.0,0.00025412]